[Event "2nd Late Dr Abul K C Chess-ch B 2022"]
[Site "Dhaka"]
[Date "2022.07.03"]
[Round "1.1"]
[White "Sagor"]
[Black "Israt, Jahan Diba"]
[Result "0-1"]
[ECO "B76"]
[WhiteElo "1997"]
[BlackElo "1659"]
[Annotator "NA RC"]
[PlyCount "29"]
[EventDate "2022.07.03"]
[EventCountry "BAN"]
[SourceTitle "playchess.com"]
[Source "ChessBase"]
[SourceQuality "1"]
[TimeControl "5400+30"]

1. e4 {[%emt 0:00:42]} c5 {[%emt 0:00:09]} 2. Nf3 {[%emt 0:00:15]} d6 {[%emt 0:00:07]} 3. d4 {[%emt 0:00:16]} cxd4 {[%emt 0:00:06]} 4. Nxd4 {[%emt 0:00:17]} Nf6 {[%emt 0:00:08]} 5. Nc3 {[%emt 0:00:20]} g6 {[%emt 0:00:08]} 6. Be3 {[%emt 0:00:45]} Bg7 {[%emt 0:00:08]} 7. f3 {[%emt 0:00:27]} O-O {[%emt 0:00:09]} 8. Qd2 {[%emt 0:00:05]} Nc6 {[%emt 0:00:08]} 9. O-O-O {[%emt 0:00:47]} d5 {[%emt 0:00:08]} 10. Qe1 {[%emt 0:01:02]} e5 {[%emt 0:00:44]} 11. Nxc6 {[%emt 0:00:05]} bxc6 {[%emt 0:00:08]} 12. exd5 {[%emt 0:00:47]} cxd5 {[%emt 0:01:55]} 13. Bg5 {[%emt 0:02:03]} Be6 {[%emt 0:06:59]} 14. Bc4 {[%emt 0:10:21]} Qa5 {[%emt 0:07:16]} 15. Bxf6 {[%emt 0:06:53]} 0-1

[Event "2nd Late Dr Abul K C Chess-ch B 2022"]
[Site "Dhaka"]
[Date "2022.07.03"]
[Round "1.2"]
[White "Moniruzzaman, Masud"]
[Black "Rahman, Saimon Siddiqur"]
[Result "0-1"]
[ECO "C00"]
[WhiteElo "1658"]
[BlackElo "1983"]
[Annotator "NA RC"]
[PlyCount "128"]
[EventDate "2022.07.03"]
[EventCountry "BAN"]
[SourceTitle "playchess.com"]
[Source "ChessBase"]
[SourceQuality "1"]
[TimeControl "5400+30"]

1. e4 {[%emt 0:00:08]} e6 {[%emt 0:03:15]} 2. Nf3 {[%emt 0:00:57]} d5 {[%emt 0:01:28]} 3. Nc3 {[%emt 0:01:34]} d4 {[%emt 0:00:32]} 4. Ne2 {[%emt 0:00:22]} c5 {[%emt 0:00:13]} 5. Ng3 {[%emt 0:01:31]} Nc6 {[%emt 0:01:11]} 6. Bc4 {[%emt 0:01:40]} Na5 {[%emt 0:01:21]} 7. Be2 {[%emt 0:01:00]} Bd7 {[%emt 0:03:44]} 8. d3 {[%emt 0:00:47]} Nc6 {[%emt 0:00:33]} 9. Nd2 {[%emt 0:02:52]} Qc7 {[%emt 0:01:36]} 10. a4 {[%emt 0:00:43]} g6 {[%emt 0:01:58]} 11. Nc4 {[%emt 0:00:51]} e5 {[%emt 0:00:57]} 12. O-O {[%emt 0:02:00]} O-O-O {[%emt 0:02:52]} 13. f4 {[%emt 0:00:30]} f6 {[%emt 0:00:30]} 14. fxe5 {[%emt 0:01:16]} fxe5 {[%emt 0:01:10]} 15. Rf7 {[%emt 0:00:49]} h5 {[%emt 0:00:56]} 16. a5 {[%emt 0:01:20]} Nh6 {[%emt 0:00:51]} 17. Bxh6 {[%emt 0:02:16]} Bxh6 {[%emt 0:00:25]} 18. Rf6 {[%emt 0:07:49]} Rdg8 {[%emt 0:00:23]} 19. c3 {[%emt 0:02:59]} Bg5 {[%emt 0:02:45]} 20. Rf7 {[%emt 0:02:37]} Rf8 {[%emt 0:00:54]} 21. Rxf8+ {[%emt 0:09:44]} Rxf8 {[%emt 0:00:05]} 22. Nf1 {[%emt 0:01:46]} Be6 {[%emt 0:01:34]} 23. Nfd2 {[%emt 0:00:46]} Qe7 {[%emt 0:00:26]} 24. Qa4 {[%emt 0:00:20]} Bd7 {[%emt 0:01:46]} 25. Nf3 {[%emt 0:02:51]} Be3+ {[%emt 0:04:18]} 26. Nxe3 {[%emt 0:05:45]} dxe3 {[%emt 0:00:03]} 27. Qc2 {[%emt 0:01:01]} g5 {[%emt 0:00:16]} 28. Rf1 {[%emt 0:00:21]} g4 {[%emt 0:00:14]} 29. Ne1 {[%emt 0:00:49]} Rxf1+ {[%emt 0:00:19]} 30. Bxf1 {[%emt 0:00:12]} Qg5 {[%emt 0:03:53]} 31. Qe2 {[%emt 0:00:10]} Nxa5 {[%emt 0:06:51]} 32. Nc2 {[%emt 0:00:44]} Nb3 {[%emt 0:00:59]} 33. Nxe3 {[%emt 0:01:52]} a5 {[%emt 0:02:06]} 34. Qe1 {[%emt 0:01:23]} a4 {[%emt 0:00:28]} 35. Nc4 {[%emt 0:02:32]} b5 {[%emt 0:06:51]} 36. Ne3 {[%emt 0:02:47]} Kb7 {[%emt 0:05:44]} 37. g3 {[%emt 0:00:18]} Qf6 {[%emt 0:06:12]} 38. Bg2 {[%emt 0:00:53]} Bc6 {[%emt 0:00:16]} 39. Nf5 {[%emt 0:00:54]} Qd8 {[%emt 0:08:54]} 40. Bf1 {[%emt 0:01:59]} Qg5 {[%emt 0:05:43]} 41. Ne3 {[%emt 0:01:18]} Qf6 {[%emt 0:01:00]} 42. Bg2 {[%emt 0:00:16]} Qd8 {[%emt 0:00:23]} 43. Bf1 {[%emt 0:01:17]} Qf8 {[%emt 0:02:09]} 44. Bg2 {[%emt 0:00:31]} Qd6 {[%emt 0:01:56]} 45. Bf1 {[%emt 0:00:12]} Bd7 {[%emt 0:00:16]} 46. Nc2 {[%emt 0:03:13]} Kb6 {[%emt 0:02:01]} 47. Qe3 {[%emt 0:03:50]} Ka5 {[%emt 0:00:44]} 48. Kf2 {[%emt 0:01:42]} Qf6+ {[%emt 0:02:45]} 49. Kg2 {[%emt 0:31:33]} Qf3+ {[%emt 0:06:47]} 50. Qxf3 {[%emt 0:00:00]} gxf3+ {[%emt 0:00:02]} 51. Kxf3 {[%emt 0:00:00]} Nd2+ {[%emt 0:00:10]} 52. Ke2 {[%emt 0:00:00]} Nxf1 {[%emt 0:00:06]} 53. Kxf1 {[%emt 0:00:00]} b4 {[%emt 0:00:08]} 54. Ke2 {[%emt 0:00:00]} a3 {[%emt 0:00:14]} 55. Nxa3 {[%emt 0:00:00]} bxa3 {[%emt 0:00:08]} 56. bxa3 {[%emt 0:00:00]} Ka4 {[%emt 0:15:09]} 57. Ke3 {[%emt 0:04:00]} Kb3 {[%emt 0:00:30]} 58. Kd2 {[%emt 0:00:00]} c4 {[%emt 0:00:30]} 59. d4 exd4 {[%emt 0:00:00]} 60. cxd4 {[%emt 0:00:00]} Kb2 {[%emt 0:00:00]} 61. d5 {[%emt 0:00:00]} c3+ {[%emt 0:00:00]} 62. Kd3 {[%emt 0:00:00]} c2 {[%emt 0:00:00]} 63. e5 {[%emt 0:00:00]} Bb5+ {[%emt 0:00:00]} 64. Kd4 {[%emt 0:00:00]} c1=Q {[%emt 0:00:00]} 0-1

[Event "2nd Late Dr Abul K C Chess-ch B 2022"]
[Site "Dhaka"]
[Date "2022.07.03"]
[Round "1.3"]
[White "Sakline Mostafa, Sajid"]
[Black "Md Masud, Rana"]
[Result "1/2-1/2"]
[ECO "D38"]
[WhiteElo "1979"]
[BlackElo "1826"]
[Annotator "NA RC"]
[PlyCount "41"]
[EventDate "2022.07.03"]
[EventCountry "BAN"]
[SourceTitle "playchess.com"]
[Source "ChessBase"]
[SourceQuality "1"]
[TimeControl "5400+30"]

1. d4 {[%emt 0:00:04]} Nf6 {[%emt 1:31:00]} 2. c4 {[%emt 0:00:07]} e6 {[%emt 0:00:00]} 3. Nf3 {[%emt 0:00:25]} d5 {[%emt 0:00:00]} 4. Nc3 {[%emt 0:00:19]} Bb4 {[%emt 0:00:00]} 5. cxd5 {[%emt 0:00:55]} exd5 {[%emt 0:00:00]} 6. Bg5 {[%emt 0:00:19]} h6 {[%emt 0:00:00]} 7. Bxf6 {[%emt 0:03:17]} Qxf6 {[%emt 0:00:00]} 8. Qb3 {[%emt 0:01:57]} Qd6 {[%emt 0:00:00]} 9. a3 {[%emt 0:02:20]} Bxc3+ {[%emt 0:00:00]} 10. Qxc3 {[%emt 0:01:21]} O-O {[%emt 0:00:00]} 11. e3 {[%emt 0:00:21]} Bf5 {[%emt 0:00:00]} 12. Be2 {[%emt 0:01:11]} Nd7 {[%emt 0:00:00]} 13. O-O {[%emt 0:05:18]} Rfe8 {[%emt 0:00:00]} 14. Rfc1 {[%emt 0:01:55]} c6 {[%emt 0:00:00]} 15. b4 {[%emt 0:02:56]} Rac8 {[%emt 0:00:00]} 16. Qb2 {[%emt 0:00:43]} g5 {[%emt 0:00:00]} 17. a4 {[%emt 0:12:32]} Be4 {[%emt 0:00:00]} 18. Nd2 {[%emt 0:03:33]} Bg6 {[%emt 0:00:00]} 19. b5 {[%emt 0:08:54]} c5 {[%emt 0:00:00]} 20. dxc5 {[%emt 0:04:39]} Nxc5 {[%emt 0:00:00]} 21. Nf3 {[%emt 0:01:24]} 1/2-1/2

[Event "2nd Late Dr Abul K C Chess-ch B 2022"]
[Site "Dhaka"]
[Date "2022.07.03"]
[Round "2.1"]
[White "Rahman, Saimon Siddiqur"]
[Black "Gulam, Sarwar"]
[Result "1-0"]
[ECO "C13"]
[WhiteElo "1983"]
[BlackElo "1796"]
[Annotator "RC"]
[PlyCount "78"]
[EventDate "2022.07.03"]
[EventCountry "BAN"]
[SourceTitle "playchess.com"]
[Source "ChessBase"]
[SourceQuality "1"]
[TimeControl "5400+30"]

1. d4 {[%emt 0:10:48]} Nf6 {[%emt 0:03:41]} 2. Nc3 {[%emt 0:02:22]} d5 {[%emt 0:03:12]} 3. Bg5 {[%emt 0:00:22]} e6 {[%emt 0:00:47]} 4. e4 {[%emt 0:00:15]} dxe4 {[%emt 0:01:40]} 5. Nxe4 {[%emt 0:00:03]} Be7 {[%emt 0:00:24]} 6. Bxf6 {[%emt 0:00:17]} Bxf6 {[%emt 0:01:10]} 7. Nxf6+ {[%emt 0:00:11]} Qxf6 {[%emt 0:00:12]} 8. Nf3 {[%emt 0:00:11]} O-O {[%emt 0:01:40]} 9. Bd3 {[%emt 0:00:05]} Nc6 {[%emt 0:02:17]} 10. O-O {[%emt 0:00:59]} e5 {[%emt 0:01:32]} 11. d5 {[%emt 0:05:24]} Nd4 {[%emt 0:01:48]} 12. Nxd4 {[%emt 0:01:09]} exd4 {[%emt 0:00:04]} 13. Be4 {[%emt 0:00:20]} c6 {[%emt 0:09:39]} 14. dxc6 {[%emt 0:01:00]} bxc6 {[%emt 0:00:29]} 15. Qd3 {[%emt 0:00:08]} Rb8 {[%emt 0:02:20]} 16. Bxh7+ {[%emt 0:02:39]} Kh8 {[%emt 0:00:18]} 17. Be4 {[%emt 0:00:03]} Rxb2 {[%emt 0:04:12]} 18. Qa3 {[%emt 0:00:21]} Re8 {[%emt 0:03:29]} 19. Qxb2 {[%emt 0:01:21]} Rxe4 {[%emt 0:00:36]} 20. Qb8 {[%emt 0:00:09]} Qe6 {[%emt 0:03:22]} 21. Qxa7 {[%emt 0:01:02]} Rg4 {[%emt 0:12:36]} 22. Qb8 {[%emt 0:01:40]} Re4 {[%emt 0:02:50]} 23. a4 {[%emt 0:00:25]} Kh7 {[%emt 0:00:38]} 24. Qg3 {[%emt 0:01:51]} f5 {[%emt 0:04:04]} 25. Qh3+ {[%emt 0:02:45]} Kg6 {[%emt 0:02:04]} 26. Qb3 {[%emt 0:01:17]} Qe7 {[%emt 0:00:55]} 27. Qb6 {[%emt 0:01:02]} Kh7 {[%emt 0:02:58]} 28. a5 {[%emt 0:00:26]} c5 {[%emt 0:01:20]} 29. a6 {[%emt 1:06:25]} Re6 {[%emt 0:00:33]} 30. Qb5 {[%emt 0:00:00]} Qa7 {[%emt 0:01:13]} 31. Rfe1 {[%emt 0:00:00]} Rg6 {[%emt 0:07:12]} 32. Ra3 {[%emt 0:00:00]} f4 {[%emt 0:02:38]} 33. Qe8 {[%emt 0:00:00]} Bd7 {[%emt 0:07:08]} 34. Qe4 {[%emt 0:00:00]} Kh6 {[%emt 0:05:01]} 35. Qxf4+ {[%emt 0:00:00]} Kh7 {[%emt 0:00:28]} 36. Qe4 {[%emt 0:00:00]} Kh6 {[%emt 0:00:18]} 37. Qb7 {[%emt 0:00:00]} Qxb7 {[%emt 0:00:55]} 38. axb7 {[%emt 0:00:00]} Rb6 {[%emt 0:00:19]} 39. Rb3 {[%emt 0:00:00]} Rg6 {[%emt 0:13:58]} 1-0

[Event "2nd Late Dr Abul K C Chess-ch B 2022"]
[Site "Dhaka"]
[Date "2022.07.03"]
[Round "2.2"]
[White "Abu Jafor, Siddik"]
[Black "Sakline Mostafa, Sajid"]
[Result "0-1"]
[ECO "B15"]
[WhiteElo "1783"]
[BlackElo "1979"]
[Annotator "NA RC"]
[PlyCount "33"]
[EventDate "2022.07.03"]
[EventCountry "BAN"]
[SourceTitle "playchess.com"]
[Source "ChessBase"]
[SourceQuality "1"]
[TimeControl "5400+30"]

1. e4 {[%emt 0:00:06]} c6 {[%emt 0:00:07]} 2. d4 {[%emt 0:00:14]} d5 {[%emt 0:00:01]} 3. Nc3 {[%emt 0:00:13]} a6 {[%emt 0:00:23]} 4. Nf3 {[%emt 0:00:31]} Bg4 {[%emt 0:00:15]} 5. Be2 {[%emt 0:01:29]} e6 {[%emt 0:00:18]} 6. Be3 {[%emt 0:02:56]} Nf6 {[%emt 0:01:00]} 7. e5 {[%emt 0:00:18]} Nfd7 {[%emt 0:00:40]} 8. h3 {[%emt 0:00:56]} Bxf3 {[%emt 0:00:23]} 9. Bxf3 {[%emt 0:03:57]} c5 {[%emt 0:01:21]} 10. Ne2 {[%emt 0:01:05]} cxd4 {[%emt 0:00:37]} 11. Bxd4 {[%emt 0:00:01]} Nc6 {[%emt 0:00:16]} 12. g3 {[%emt 0:04:34]} Ndxe5 {[%emt 0:01:21]} 13. Bg2 {[%emt 0:00:04]} Nxd4 {[%emt 1:30:18]} 14. Nxd4 {[%emt 0:01:48]} Bc5 {[%emt 0:00:00]} 15. Nb3 {[%emt 0:01:03]} Bb6 {[%emt 0:00:00]} 16. O-O {[%emt 0:00:46]} O-O {[%emt 0:00:00]} 17. Qe2 {[%emt 0:02:06]} 0-1

[Event "2nd Late Dr Abul K C Chess-ch B 2022"]
[Site "Dhaka"]
[Date "2022.07.03"]
[Round "3.1"]
[White "Salim Mohammed, Salim Al Amri"]
[Black "Rahman, Saimon Siddiqur"]
[Result "1-0"]
[ECO "A50"]
[WhiteElo "1917"]
[BlackElo "1983"]
[Annotator "RC"]
[PlyCount "205"]
[EventDate "2022.07.03"]
[EventCountry "BAN"]
[SourceTitle "playchess.com"]
[Source "ChessBase"]
[SourceQuality "1"]
[TimeControl "5400+30"]

1. c4 {[%emt 0:53:49]} b6 {[%emt 0:00:06]} 2. Nf3 {[%emt 0:00:18]} Bb7 {[%emt 0:00:11]} 3. g3 {[%emt 0:00:02]} g6 {[%emt 0:03:03]} 4. Bg2 {[%emt 0:00:03]} Bg7 {[%emt 0:00:16]} 5. O-O {[%emt 0:00:05]} Nf6 {[%emt 0:00:26]} 6. Nc3 {[%emt 0:00:09]} d6 {[%emt 0:00:21]} 7. d4 {[%emt 0:00:14]} Nbd7 {[%emt 0:00:40]} 8. Qc2 {[%emt 0:01:28]} O-O {[%emt 0:00:08]} 9. b3 {[%emt 0:00:38]} c5 {[%emt 0:02:55]} 10. d5 {[%emt 0:00:43]} Re8 {[%emt 0:05:46]} 11. Bb2 {[%emt 0:00:04]} a6 {[%emt 0:00:17]} 12. Rfe1 {[%emt 0:00:48]} Rb8 {[%emt 0:00:22]} 13. a4 {[%emt 0:00:16]} Qc7 {[%emt 0:00:25]} 14. Rad1 {[%emt 0:00:23]} Rbd8 {[%emt 0:03:06]} 15. e4 {[%emt 0:02:07]} Ng4 {[%emt 0:03:16]} 16. h3 {[%emt 0:37:23]} Ngf6 {[%emt 0:01:16]} 17. Re2 {[%emt 0:00:00]} e5 {[%emt 0:00:55]} 18. Bc1 {[%emt 0:00:00]} h6 {[%emt 0:00:29]} 19. Nh2 {[%emt 0:00:00]} Nh5 {[%emt 0:01:20]} 20. Be3 {[%emt 0:00:00]} Kh7 {[%emt 0:01:23]} 21. Rf1 {[%emt 0:00:00]} Bc8 {[%emt 0:00:21]} 22. Qc1 {[%emt 0:00:00]} Nf8 {[%emt 0:00:27]} 23. g4 {[%emt 0:00:00]} Nf4 {[%emt 0:00:23]} 24. Rc2 {[%emt 0:00:00]} g5 {[%emt 0:00:52]} 25. Ne2 {[%emt 0:00:00]} Nxe2+ {[%emt 0:03:16]} 26. Rxe2 {[%emt 0:00:00]} Ng6 {[%emt 0:00:05]} 27. Rfe1 {[%emt 0:00:00]} Nf4 {[%emt 0:00:16]} 28. Rd2 {[%emt 0:00:00]} Bd7 {[%emt 0:00:22]} 29. Nf1 {[%emt 0:00:00]} b5 {[%emt 0:00:25]} 30. axb5 {[%emt 0:00:00]} axb5 {[%emt 0:00:06]} 31. Ng3 {[%emt 0:00:00]} Ra8 {[%emt 0:00:30]} 32. Nf5 {[%emt 0:00:00]} Bf6 {[%emt 0:00:46]} 33. Qb2 {[%emt 0:00:00]} Qa5 {[%emt 0:01:51]} 34. Bxf4 {[%emt 0:00:00]} Bxf5 {[%emt 0:00:09]} 35. Be3 {[%emt 0:00:00]} Bg6 {[%emt 0:00:08]} 36. Rde2 {[%emt 0:00:00]} Reb8 {[%emt 0:02:13]} 37. Rc1 {[%emt 0:03:57]} Qb4 {[%emt 0:02:26]} 38. Bd2 {[%emt 0:03:59]} Qa3 {[%emt 0:00:08]} 39. Qxa3 {[%emt 0:01:40]} Rxa3 {[%emt 0:00:03]} 40. Rc3 {[%emt 0:00:32]} Bd8 {[%emt 0:00:51]} 41. Rce3 {[%emt 0:00:08]} bxc4 {[%emt 0:00:56]} 42. bxc4 {[%emt 0:00:07]} Ra4 {[%emt 0:00:22]} 43. Rc3 {[%emt 0:01:49]} Rb2 {[%emt 0:00:50]} 44. Bf3 {[%emt 0:00:14]} Ba5 {[%emt 0:00:44]} 45. Rd3 {[%emt 0:00:14]} Bxd2 {[%emt 0:01:51]} 46. Rexd2 {[%emt 0:00:53]} Rxd2 {[%emt 0:00:13]} 47. Rxd2 {[%emt 0:00:02]} Rxc4 {[%emt 0:00:07]} 48. Ra2 {[%emt 0:00:19]} Bxe4 {[%emt 0:01:08]} 49. Bxe4+ {[%emt 0:00:13]} Rxe4 {[%emt 0:00:03]} 50. Ra6 {[%emt 0:00:01]} Rd4 {[%emt 0:01:44]} 51. Rxd6 {[%emt 0:00:06]} c4 {[%emt 0:00:13]} 52. Rc6 {[%emt 0:00:57]} Rxd5 {[%emt 0:00:30]} 53. Rxc4 {[%emt 0:00:02]} Kg6 {[%emt 0:00:31]} 54. Rc6+ {[%emt 0:00:11]} f6 {[%emt 0:00:07]} 55. Rc7 {[%emt 0:00:11]} Rd4 {[%emt 0:01:03]} 56. Kg2 {[%emt 0:00:15]} Rd2 {[%emt 0:00:35]} 57. Rc6 {[%emt 0:02:29]} Rd4 {[%emt 0:00:09]} 58. Kg3 {[%emt 0:00:31]} Rd3+ {[%emt 0:00:05]} 59. Kg2 {[%emt 0:00:02]} Rd4 {[%emt 0:00:07]} 60. Kg3 {[%emt 0:00:04]} Rf4 {[%emt 0:00:03]} 61. Ra6 {[%emt 0:01:53]} h5 {[%emt 0:00:13]} 62. Re6 {[%emt 0:00:21]} h4+ {[%emt 0:00:29]} 63. Kg2 {[%emt 0:00:02]} Kf7 {[%emt 0:00:06]} 64. Ra6 {[%emt 0:00:02]} Ke7 {[%emt 0:00:12]} 65. Rb6 {[%emt 0:00:36]} Rd4 {[%emt 0:00:07]} 66. Rb3 {[%emt 0:00:14]} Ke6 {[%emt 0:00:26]} 67. Rb6+ {[%emt 0:00:08]} Rd6 {[%emt 0:00:02]} 68. Rb3 {[%emt 0:00:06]} Kd5 {[%emt 0:02:14]} 69. Rb4 {[%emt 0:01:26]} e4 {[%emt 0:01:05]} 70. Rb5+ {[%emt 0:01:38]} Kd4 {[%emt 0:00:26]} 71. Kf1 {[%emt 0:00:26]} Kd3 {[%emt 0:00:47]} 72. Rb1 {[%emt 0:00:19]} Rc6 {[%emt 0:01:17]} 73. Rd1+ {[%emt 0:00:10]} Kc4 {[%emt 1:05:56]} 74. Ke2 {[%emt 0:00:09]} Ra6 {[%emt 0:00:00]} 75. Ke3 {[%emt 0:01:13]} Ra3+ {[%emt 0:00:00]} 76. Kxe4 {[%emt 0:00:04]} Rxh3 {[%emt 0:00:00]} 77. Rd4+ {[%emt 0:01:09]} Kc5 {[%emt 0:00:00]} 78. Rd5+ {[%emt 0:00:06]} Kc6 {[%emt 0:00:00]} 79. Rf5 {[%emt 0:00:06]} Rh2 {[%emt 0:00:00]} 80. Rxf6+ {[%emt 0:00:12]} Kd7 {[%emt 0:00:00]} 81. f3 {[%emt 0:01:44]} Ra2 {[%emt 0:00:00]} 82. Rf5 {[%emt 0:01:10]} Re2+ {[%emt 0:00:00]} 83. Kd3 {[%emt 0:00:39]} Re7 {[%emt 0:00:00]} 84. Rxg5 {[%emt 0:00:31]} Rh7 {[%emt 0:00:00]} 85. Ke4 {[%emt 0:00:37]} h3 {[%emt 0:00:00]} 86. Rd5+ {[%emt 0:00:04]} Ke6 {[%emt 0:00:00]} 87. Rd1 {[%emt 0:00:04]} h2 {[%emt 0:00:00]} 88. Rh1 {[%emt 0:00:03]} Kf6 {[%emt 0:00:00]} 89. Kf4 {[%emt 0:00:13]} Rh3 {[%emt 0:00:00]} 90. g5+ {[%emt 0:00:09]} Kg6 {[%emt 0:00:00]} 91. Kg4 {[%emt 0:00:02]} Rh8 {[%emt 0:00:00]} 92. f4 {[%emt 0:00:12]} Kf7 {[%emt 0:00:00]} 93. Kg3 {[%emt 0:00:10]} Ke6 {[%emt 0:00:00]} 94. Rxh2 {[%emt 0:00:09]} Rf8 {[%emt 0:00:00]} 95. Re2+ {[%emt 0:00:11]} Kd5 {[%emt 0:00:00]} 96. Kg4 {[%emt 0:00:56]} Kd6 {[%emt 0:00:00]} 97. g6 {[%emt 0:00:02]} Kd7 {[%emt 0:00:00]} 98. f5 {[%emt 0:00:11]} Re8 {[%emt 0:00:00]} 99. Rh2 {[%emt 0:01:00]} Ke7 {[%emt 0:00:00]} 100. Kg5 {[%emt 0:00:02]} Rf8 {[%emt 0:00:00]} 101. Re2+ {[%emt 0:00:12]} Kd7 {[%emt 0:00:00]} 102. g7 {[%emt 0:00:14]} Ra8 {[%emt 0:00:00]} 103. Kg6 {[%emt 0:00:08]} 1-0

[Event "2nd Late Dr Abul K C Chess-ch B 2022"]
[Site "Dhaka"]
[Date "2022.07.03"]
[Round "3.2"]
[White "Sakline Mostafa, Sajid"]
[Black "Bappi, A.b."]
[Result "0-1"]
[ECO "D94"]
[WhiteElo "1979"]
[BlackElo "1839"]
[Annotator "RC"]
[PlyCount "138"]
[EventDate "2022.07.03"]
[EventCountry "BAN"]
[SourceTitle "playchess.com"]
[Source "ChessBase"]
[SourceQuality "1"]
[TimeControl "5400+30"]

1. d4 {[%emt 0:00:04]} Nf6 {[%emt 0:00:56]} 2. c4 {[%emt 0:00:18]} c6 {[%emt 0:00:07]} 3. Nc3 {[%emt 0:00:08]} d5 {[%emt 0:00:19]} 4. e3 {[%emt 0:00:07]} g6 {[%emt 0:00:40]} 5. Nf3 {[%emt 0:00:04]} Bg7 {[%emt 0:00:21]} 6. Be2 {[%emt 0:00:15]} O-O {[%emt 0:00:33]} 7. O-O {[%emt 0:00:02]} Re8 {[%emt 0:00:28]} 8. Qb3 {[%emt 0:01:52]} Qb6 {[%emt 0:04:19]} 9. Bd2 {[%emt 0:06:59]} Qxb3 {[%emt 0:05:15]} 10. axb3 {[%emt 0:00:04]} Bg4 {[%emt 0:00:32]} 11. h3 {[%emt 0:13:30]} Bxf3 {[%emt 0:04:59]} 12. Bxf3 {[%emt 0:00:02]} e6 {[%emt 0:00:01]} 13. Rad1 {[%emt 0:03:37]} Nbd7 {[%emt 0:01:32]} 14. Bc1 {[%emt 0:01:48]} Bf8 {[%emt 0:00:43]} 15. g3 {[%emt 0:02:13]} Nb6 {[%emt 0:03:53]} 16. Be2 {[%emt 0:09:43]} e5 {[%emt 0:05:32]} 17. dxe5 {[%emt 0:04:35]} Rxe5 {[%emt 0:00:10]} 18. cxd5 {[%emt 0:00:43]} Nfxd5 {[%emt 0:00:22]} 19. Nxd5 {[%emt 0:01:25]} Rxd5 {[%emt 0:00:40]} 20. e4 {[%emt 0:01:59]} Re5 {[%emt 0:04:48]} 21. Bf3 {[%emt 0:04:21]} Ree8 {[%emt 0:02:30]} 22. Be3 {[%emt 0:02:15]} Rad8 {[%emt 0:00:11]} 23. Rxd8 {[%emt 0:13:06]} Rxd8 {[%emt 0:00:03]} 24. Ra1 {[%emt 0:00:01]} Nc8 {[%emt 0:01:32]} 25. Be2 {[%emt 0:13:07]} a6 {[%emt 0:01:31]} 26. f4 {[%emt 0:01:18]} Bb4 {[%emt 0:02:59]} 27. Kg2 {[%emt 0:01:49]} Kg7 {[%emt 0:01:29]} 28. Kf3 {[%emt 0:00:57]} Ne7 {[%emt 0:01:32]} 29. Rc1 {[%emt 0:01:13]} f5 {[%emt 0:00:35]} 30. e5 {[%emt 0:09:06]} h5 {[%emt 0:04:30]} 31. Rg1 {[%emt 0:01:48]} b5 {[%emt 0:05:06]} 32. Ra1 {[%emt 0:00:58]} a5 {[%emt 0:00:03]} 33. Rc1 {[%emt 0:00:24]} Kf7 {[%emt 0:00:35]} 34. Kg2 {[%emt 0:01:37]} Ke6 {[%emt 0:03:16]} 35. Kf3 {[%emt 0:01:09]} Ra8 {[%emt 0:02:35]} 36. Bd1 {[%emt 0:03:03]} Kf7 {[%emt 0:03:12]} 37. Ke2 {[%emt 0:00:15]} Ke6 {[%emt 0:01:08]} 38. Bc2 {[%emt 0:00:11]} Rd8 {[%emt 0:00:43]} 39. Bd3 {[%emt 0:00:19]} Ra8 {[%emt 0:00:28]} 40. Bc2 {[%emt 0:00:38]} Rd8 {[%emt 0:00:36]} 41. Rg1 {[%emt 0:00:49]} Nd5 {[%emt 0:01:36]} 42. Bc1 {[%emt 0:00:35]} Rh8 {[%emt 0:01:48]} 43. Kf3 {[%emt 0:00:36]} Ne7 {[%emt 0:01:01]} 44. Ke2 {[%emt 0:01:34]} Rd8 {[%emt 0:01:43]} 45. Bd3 {[%emt 0:00:36]} Ra8 {[%emt 0:00:04]} 46. Bc2 {[%emt 0:00:07]} Rd8 {[%emt 0:00:03]} 47. Rg2 {[%emt 0:00:21]} Ra8 {[%emt 0:00:29]} 48. Be3 {[%emt 0:01:52]} Rc8 {[%emt 0:01:07]} 49. Rg1 {[%emt 0:00:31]} Nd5 {[%emt 0:00:39]} 50. Bc1 {[%emt 0:00:15]} Ne7 {[%emt 0:00:14]} 51. Rd1 {[%emt 0:00:16]} Ra8 {[%emt 0:00:55]} 52. Be3 {[%emt 0:00:11]} Nd5 {[%emt 0:00:21]} 53. Bc1 {[%emt 0:01:14]} a4 {[%emt 0:01:19]} 54. bxa4 {[%emt 0:00:32]} bxa4 {[%emt 0:00:03]} 55. Rd3 {[%emt 0:00:40]} Ra5 {[%emt 0:01:37]} 56. Kd1 {[%emt 0:00:25]} Ra8 {[%emt 0:01:11]} 57. Ke2 {[%emt 0:00:45]} Ra5 {[%emt 0:00:15]} 58. Kd1 {[%emt 0:00:15]} Ra8 {[%emt 0:00:31]} 59. Bb1 {[%emt 0:00:13]} Ke7 {[%emt 0:01:38]} 60. Ba2 {[%emt 0:00:25]} Ra5 {[%emt 0:00:22]} 61. Rd4 {[%emt 0:01:00]} Bc5 {[%emt 0:05:58]} 62. Rc4 {[%emt 0:00:37]} Kd7 {[%emt 0:01:02]} 63. Ke2 {[%emt 0:00:19]} a3 {[%emt 0:01:12]} 64. Bd2 {[%emt 0:00:32]} Rb5 {[%emt 0:00:52]} 65. bxa3 {[%emt 0:00:32]} Bxa3 {[%emt 0:00:04]} 66. Ra4 {[%emt 0:00:09]} Bc5 {[%emt 0:00:02]} 67. Bc4 {[%emt 0:01:04]} Rb2 {[%emt 0:00:05]} 68. Bxd5 {[%emt 0:00:24]} cxd5 {[%emt 0:00:03]} 69. Ra5 {[%emt 0:00:28]} Rxd2+ {[%emt 0:28:02]} 0-1

[Event "2nd Late Dr Abul K C Chess-ch B 2022"]
[Site "Dhaka"]
[Date "2022.07.03"]
[Round "3.3"]
[White "Md Mutakabbir"]
[Black "Ahmed, Feroz"]
[Result "0-1"]
[ECO "C44"]
[WhiteElo "1834"]
[BlackElo "1976"]
[Annotator "RC"]
[PlyCount "43"]
[EventDate "2022.07.03"]
[EventCountry "BAN"]
[SourceTitle "playchess.com"]
[Source "ChessBase"]
[SourceQuality "1"]
[TimeControl "5400+30"]

1. e4 {[%emt 0:00:19]} e5 {[%emt 0:00:49]} 2. Nf3 {[%emt 0:00:26]} Nc6 {[%emt 1:30:41]} 3. d4 {[%emt 0:00:15]} exd4 {[%emt 0:00:00]} 4. Bc4 {[%emt 0:00:25]} Qf6 {[%emt 0:00:00]} 5. O-O {[%emt 0:00:50]} d6 {[%emt 0:00:00]} 6. c3 {[%emt 0:00:39]} Bg4 {[%emt 0:00:00]} 7. Qb3 {[%emt 0:03:28]} Nge7 {[%emt 0:00:00]} 8. Nxd4 {[%emt 0:02:24]} Nd8 {[%emt 0:00:00]} 9. Nb5 {[%emt 0:01:47]} Kd7 {[%emt 0:00:00]} 10. Be3 {[%emt 0:02:09]} a6 {[%emt 0:00:00]} 11. Nd4 {[%emt 0:03:43]} c5 {[%emt 0:00:00]} 12. Nc2 {[%emt 0:03:11]} Be6 {[%emt 0:00:00]} 13. Nd2 {[%emt 0:00:39]} Nec6 {[%emt 0:00:00]} 14. Rad1 {[%emt 0:00:56]} Kc7 {[%emt 0:00:00]} 15. Bxe6 {[%emt 0:00:16]} Qxe6 {[%emt 0:00:00]} 16. c4 {[%emt 0:01:11]} Be7 {[%emt 0:00:00]} 17. Bf4 {[%emt 0:00:35]} g5 {[%emt 0:00:00]} 18. Bg3 {[%emt 0:00:41]} h5 {[%emt 0:00:00]} 19. f4 {[%emt 0:01:50]} h4 {[%emt 0:00:00]} 20. f5 {[%emt 0:12:43]} Qh6 {[%emt 0:00:00]} 21. Bf2 {[%emt 0:00:40]} Kb8 {[%emt 0:00:00]} 22. Ne3 {[%emt 0:00:35]} 0-1